[Event "Gibraltar Masters 18th"]
[Site "Gibraltar"]
[Date "2020.01.23"]
[Round "3.44"]
[White "Ioannidis, Evgenios"]
[Black "Deac, Bogdan-Daniel"]
[Result "0-1"]
[ECO "A37"]
[WhiteElo "2373"]
[BlackElo "2626"]
[PlyCount "80"]
[EventDate "2020.01.21"]
[EventType "swiss"]
[EventRounds "10"]
[EventCountry "GGB"]
[SourceTitle "BritBase"]
[Source "John Saunders"]
[SourceDate "2021.06.05"]
[SourceVersion "1"]
[SourceVersionDate "2021.06.05"]
[SourceQuality "1"]
[TimeControl "40/100:0"]
[WhiteClock "0:01:31"]
[BlackClock "0:53:49"]

1. Nf3 {[%emt 0:00:00]} c5 {[%emt 0:00:00]} 2. c4 {[%emt 0:00:00]} Nc6 {
[%emt 0:00:00]} 3. g3 {[%emt 0:00:00]} g6 {[%emt 0:00:00]} 4. Bg2 {[%emt 0:00:
00]} Bg7 {[%emt 0:00:00]} 5. Nc3 {[%emt 0:00:00]} d6 {[%emt 0:00:00]} 6. O-O {
[%emt 0:00:00]} e6 {[%emt 0:00:00]} 7. e3 {[%emt 0:00:00]} Nge7 {[%emt 0:00:00]
} 8. d4 {[%emt 0:00:00]} O-O {[%emt 0:00:00]} 9. Re1 {[%emt 0:00:00]} Rb8 {
[%emt 0:00:00]} 10. b3 {[%emt 0:00:00]} Nf5 {[%emt 0:00:00]} 11. Ne2 {[%emt 0:
00:00]} e5 {[%emt 0:00:00]} 12. Bb2 {[%emt 0:00:00]} cxd4 {[%emt 0:00:00]} 13.
exd4 {[%emt 0:00:00]} e4 {[%emt 0:00:00]} 14. Nd2 {[%emt 0:00:00]} e3 {[%emt 0:
00:00]} 15. Nf3 {[%emt 0:00:00]} Re8 {[%emt 0:00:00]} 16. Nf4 {[%emt 0:00:00]}
exf2+ {[%emt 0:00:00]} 17. Kxf2 {[%emt 0:00:00]} Rxe1 {[%emt 0:00:00]} 18. Qxe1
{[%emt 0:00:00]} Ncxd4 {[%emt 0:00:00]} 19. Nxd4 {[%emt 0:00:00]} Nxd4 {
[%emt 0:00:00]} 20. Nd5 {[%emt 0:00:00]} Be6 {[%emt 0:00:00]} 21. Qd2 {[%emt 0:
00:00]} Nc6 {[%emt 0:00:00]} 22. Bxg7 {[%emt 0:00:00]} Kxg7 {[%emt 0:00:00]}
23. Qc3+ Ne5 24. Rd1 Bxd5 25. Rxd5 Qf6+ 26. Kg1 b6 27. a4 Rd8 28. a5 Nd7 29.
Qxf6+ Nxf6 30. Rb5 Rb8 31. b4 Ne8 32. c5 Nc7 33. Rxb6 axb6 34. cxb6 {[%emt 0:
00:00]} Ne6 {[%emt 0:00:00]} 35. b5 {[%emt 0:00:00]} Kf6 {[%emt 0:00:00]} 36.
Bd5 {[%emt 0:00:00]} Ke7 {[%emt 0:00:00]} 37. Kf2 {[%emt 0:00:00]} Kd8 38. a6 {
[%emt 0:00:57]} Rxb6 {[%emt 0:00:00]} 39. Bxe6 {[%emt 0:00:00]} Rxb5 {[%emt 0:
00:00]} 40. Bxf7 {[%emt 0:00:00]} Rf5+ {[%emt 0:00:00]} 0-1

[Event "Gibraltar Masters 18th"]
[Site "Gibraltar"]
[Date "2020.01.23"]
[Round "3.45"]
[White "Pigott, John C"]
[Black "Vocaturo, Daniele"]
[Result "1-0"]
[ECO "A56"]
[WhiteElo "2370"]
[BlackElo "2622"]
[PlyCount "97"]
[EventDate "2020.01.21"]
[EventType "swiss"]
[EventRounds "10"]
[EventCountry "GGB"]
[SourceTitle "BritBase"]
[Source "John Saunders"]
[SourceDate "2021.06.05"]
[SourceVersion "1"]
[SourceVersionDate "2021.06.05"]
[SourceQuality "1"]
[TimeControl "40/100:0"]
[WhiteClock "0:39:09"]
[BlackClock "1:39:02"]

1. c4 {[%emt 0:00:00]} Nf6 {[%emt 0:00:00]} 2. Nc3 {[%emt 0:00:00]} g6 {
[%emt 0:00:00]} 3. e4 {[%emt 0:00:00]} d6 {[%emt 0:00:00]} 4. d4 {[%emt 0:00:
00]} Bg7 {[%emt 0:00:00]} 5. h3 {[%emt 0:00:00]} c5 {[%emt 0:00:00]} 6. d5 {
[%emt 0:00:00]} e5 {[%emt 0:00:00]} 7. Bd3 {[%emt 0:00:00]} Nbd7 {[%emt 0:00:
00]} 8. Bg5 {[%emt 0:00:00]} a6 {[%emt 0:00:00]} 9. Nge2 {[%emt 0:00:00]} Rb8 {
[%emt 0:00:00]} 10. Qd2 {[%emt 0:00:00]} h6 {[%emt 0:00:00]} 11. Be3 {[%emt 0:
00:00]} Nh5 {[%emt 0:00:00]} 12. Rb1 {[%emt 0:00:00]} g5 {[%emt 0:00:00]} 13.
g3 {[%emt 0:00:00]} Nf4 {[%emt 0:00:00]} 14. gxf4 {[%emt 0:00:00]} gxf4 {
[%emt 0:00:00]} 15. Ng3 {[%emt 0:00:00]} fxe3 {[%emt 0:00:00]} 16. fxe3 {
[%emt 0:00:00]} Nf6 {[%emt 0:00:00]} 17. Qf2 {[%emt 0:00:00]} h5 {[%emt 0:00:
00]} 18. Nf5 {[%emt 0:00:00]} Bxf5 {[%emt 0:00:00]} 19. Qxf5 {[%emt 0:00:00]}
h4 {[%emt 0:00:00]} 20. Be2 {[%emt 0:00:00]} Nh7 {[%emt 0:00:00]} 21. Kd2 {
[%emt 0:00:00]} Bh6 {[%emt 0:00:00]} 22. b4 cxb4 23. Rxb4 Qc7 24. Rb3 Qc5 25.
Nd1 Ng5 26. Rg1 Rg8 27. Rg4 Rg6 28. Rxh4 Nh7 29. Rg4 Rxg4 30. Bxg4 Ng5 31. h4
Nxe4+ 32. Qxe4 Ke7 33. Ke2 b5 34. cxb5 axb5 35. Rc3 Qa7 36. Qc2 Rb7 37. a3 b4
38. axb4 {[%emt 0:00:00]} Qa6+ {[%emt 0:00:00]} 39. Ke1 Qb6 40. Qh7 {[%emt 0:
00:12]} Bf4 {[%emt 0:00:00]} 41. Kf2 {[%emt 0:00:00]} Qxb4 {[%emt 0:00:00]} 42.
exf4 {[%emt 0:00:00]} Qxf4+ {[%emt 0:00:00]} 43. Bf3 {[%emt 0:00:00]} Ra7 {
[%emt 0:00:00]} 44. Ne3 {[%emt 0:00:00]} Qh2+ {[%emt 0:00:00]} 45. Ng2 {
[%emt 0:00:00]} Ra1 {[%emt 0:00:00]} 46. Rc7+ {[%emt 0:00:00]} Kd8 {[%emt 0:00:
00]} 47. Qc2 {[%emt 0:00:00]} e4 {[%emt 0:00:00]} 48. Rc8+ {[%emt 0:00:00]} Ke7
{[%emt 0:00:00]} 49. Qxe4+ {[%emt 0:00:00]} 1-0

[Event "Gibraltar Masters 18th"]
[Site "Gibraltar"]
[Date "2020.01.23"]
[Round "3.46"]
[White "Padmini, Rout"]
[Black "Praggnanandhaa, Rameshbabu"]
[Result "0-1"]
[ECO "B41"]
[WhiteElo "2369"]
[BlackElo "2602"]
[PlyCount "94"]
[EventDate "2020.01.21"]
[EventType "swiss"]
[EventRounds "10"]
[EventCountry "GGB"]
[SourceTitle "BritBase"]
[Source "John Saunders"]
[SourceDate "2021.06.05"]
[SourceVersion "1"]
[SourceVersionDate "2021.06.05"]
[SourceQuality "1"]
[TimeControl "40/100:0"]
[WhiteClock "0:36:35"]
[BlackClock "0:37:38"]

1. e4 {[%emt 0:00:00]} c5 {[%emt 0:00:00]} 2. Nf3 {[%emt 0:00:00]} e6 {[%emt 0:
00:00]} 3. d4 {[%emt 0:00:00]} cxd4 {[%emt 0:00:00]} 4. Nxd4 {[%emt 0:00:00]}
a6 {[%emt 0:00:00]} 5. c4 {[%emt 0:00:00]} Nf6 {[%emt 0:00:00]} 6. Nc3 {
[%emt 0:00:00]} Qc7 {[%emt 0:00:00]} 7. Be2 {[%emt 0:00:00]} Bb4 {[%emt 0:00:
00]} 8. f3 {[%emt 0:00:00]} Nc6 {[%emt 0:00:00]} 9. Be3 {[%emt 0:00:00]} d6 {
[%emt 0:00:00]} 10. Rc1 {[%emt 0:00:00]} Bc5 {[%emt 0:00:00]} 11. Qd2 {[%emt 0:
00:00]} Nxd4 {[%emt 0:00:00]} 12. Bxd4 {[%emt 0:00:00]} Bxd4 {[%emt 0:00:00]}
13. Qxd4 {[%emt 0:00:00]} e5 {[%emt 0:00:00]} 14. Qe3 {[%emt 0:00:00]} Be6 {
[%emt 0:00:00]} 15. O-O {[%emt 0:00:00]} O-O {[%emt 0:00:00]} 16. Nd5 {[%emt 0:
00:00]} Bxd5 {[%emt 0:00:00]} 17. cxd5 {[%emt 0:00:00]} Qa5 {[%emt 0:00:00]}
18. a3 {[%emt 0:00:00]} Rfc8 {[%emt 0:00:00]} 19. g3 Nd7 20. Rfd1 Qd8 21. Bc4
a5 22. Bb3 Rxc1 23. Rxc1 Nc5 24. Bd1 Qb6 25. Rc2 Rf8 26. f4 Re8 27. f5 f6 28.
h4 {[%emt 0:00:00]} a4 {[%emt 0:00:00]} 29. Be2 {[%emt 0:00:00]} Qa5 {[%emt 0:
00:00]} 30. Bc4 {[%emt 0:00:00]} b5 {[%emt 0:00:00]} 31. g4 {[%emt 0:00:00]}
Rb8 {[%emt 0:00:00]} 32. Bf1 {[%emt 0:00:00]} Qd8 {[%emt 0:00:00]} 33. g5 {
[%emt 0:00:00]} b4 {[%emt 0:00:00]} 34. Rg2 {[%emt 0:00:00]} bxa3 {[%emt 0:00:
00]} 35. bxa3 {[%emt 0:00:00]} Rb1 {[%emt 0:00:00] Bc4 Rc1+} 36. Kh2 Rd1 {
[%emt 0:00:00]} 37. Be2 {[%emt 0:00:00]} Rd4 {[%emt 0:00:00]} 38. Rg4 {[%emt 0:
00:00]} Kf8 {[%emt 0:00:00]} 39. Bb5 {[%emt 0:00:16]} fxg5 {[%emt 0:00:00]} 40.
hxg5 {[%emt 0:00:14]} Qa5 {[%emt 0:00:00]} 41. g6 {[%emt 0:00:00]} h5 {[%emt 0:
00:00]} 42. Rg2 {[%emt 0:00:00]} Qxb5 {[%emt 0:00:00]} 43. Qg5 {[%emt 0:00:00]}
Nxe4 {[%emt 0:00:00]} 44. Qxh5 {[%emt 0:00:00]} Qxd5 {[%emt 0:00:00]} 45. Qh8+
{[%emt 0:00:00]} Qg8 {[%emt 0:00:00]} 46. Qh3 {[%emt 0:00:00]} Ke7 {[%emt 0:00:
00]} 47. Rb2 {[%emt 0:00:00]} Qd5 {[%emt 0:00:00]} 0-1

[Event "Gibraltar Masters 18th"]
[Site "Gibraltar"]
[Date "2020.01.23"]
[Round "3.47"]
[White "Melia, Salome"]
[Black "Can, Emre"]
[Result "0-1"]
[ECO "B51"]
[WhiteElo "2368"]
[BlackElo "2600"]
[PlyCount "130"]
[EventDate "2020.01.21"]
[EventType "swiss"]
[EventRounds "10"]
[EventCountry "GGB"]
[SourceTitle "BritBase"]
[Source "John Saunders"]
[SourceDate "2021.06.05"]
[SourceVersion "1"]
[SourceVersionDate "2021.06.05"]
[SourceQuality "1"]
[TimeControl "40/100:0"]
[WhiteClock "0:00:42"]
[BlackClock "0:12:55"]

1. e4 {[%emt 0:00:00]} c5 {[%emt 0:00:00]} 2. Nf3 {[%emt 0:00:00]} d6 {[%emt 0:
00:00]} 3. Bb5+ {[%emt 0:00:00]} Nd7 {[%emt 0:00:00]} 4. d4 {[%emt 0:00:00]}
cxd4 {[%emt 0:00:00]} 5. Qxd4 {[%emt 0:00:00]} a6 {[%emt 0:00:00]} 6. Bxd7+ {
[%emt 0:00:00]} Qxd7 {[%emt 0:00:00]} 7. Nc3 {[%emt 0:00:00]} e5 {[%emt 0:00:
00]} 8. Qd3 {[%emt 0:00:00]} Qc6 {[%emt 0:00:00]} 9. O-O {[%emt 0:00:00]} Be6 {
[%emt 0:00:00]} 10. Rd1 {[%emt 0:00:00]} Rc8 {[%emt 0:00:00]} 11. a4 {[%emt 0:
00:00]} Nf6 {[%emt 0:00:00]} 12. Bg5 {[%emt 0:00:00]} Nd7 {[%emt 0:00:00]} 13.
a5 {[%emt 0:00:00]} h6 {[%emt 0:00:00]} 14. Be3 {[%emt 0:00:00]} Be7 {[%emt 0:
00:00]} 15. Nd2 {[%emt 0:00:00]} Nf6 {[%emt 0:00:00]} 16. Bb6 {[%emt 0:00:00]}
d5 {[%emt 0:00:00]} 17. exd5 {[%emt 0:00:00]} Nxd5 {[%emt 0:00:00]} 18. Nxd5 {
[%emt 0:00:00]} Bxd5 {[%emt 0:00:00]} 19. c4 {[%emt 0:00:00]} Be6 20. b3 O-O
21. Qe4 f5 22. Qxc6 Rxc6 {[%emt 0:00:00]} 23. Nf3 Bf6 24. Rac1 {[%emt 0:00:00]}
g5 {[%emt 0:00:00]} 25. Rc2 {[%emt 0:00:00]} Re8 {[%emt 0:00:00]} 26. Rcd2 {
[%emt 0:00:00]} f4 {[%emt 0:00:00]} 27. Rd6 {[%emt 0:00:23]} Rxd6 {[%emt 0:00:
00]} 28. Rxd6 {[%emt 0:00:00]} Kf7 {[%emt 0:00:00]} 29. Rd2 {[%emt 0:00:42]} e4
{[%emt 0:00:00]} 30. Nd4 {[%emt 0:00:00]} Bg4 {[%emt 0:00:00]} 31. Nc2 {
[%emt 0:00:00]} Bc3 {[%emt 0:00:00]} 32. Rd5 {[%emt 0:00:00]} Re5 {[%emt 0:00:
00]} 33. Rxe5 {[%emt 0:00:00]} Bxe5 {[%emt 0:00:00]} 34. Nd4 {[%emt 0:00:00]}
Bd6 {[%emt 0:00:00]} 35. f3 {[%emt 0:00:00]} exf3 {[%emt 0:00:00]} 36. gxf3 {
[%emt 0:00:00]} Bd7 {[%emt 0:00:00]} 37. Kg2 {[%emt 0:00:00]} Kf6 {[%emt 0:00:
00]} 38. h3 {[%emt 0:00:00]} Bb4 {[%emt 0:00:00]} 39. Nc2 {[%emt 0:00:00]} Bc3
{[%emt 0:00:00]} 40. Bd8+ {[%emt 0:00:00]} Ke5 {[%emt 0:00:36]} 41. Bc7+ {
[%emt 0:01:34]} Kf5 {[%emt 0:02:11]} 42. Bb6 {[%emt 0:00:00]} Ke6 {[%emt 0:00:
00]} 43. Bc7 {[%emt 0:00:00]} Be8 {[%emt 0:00:00]} 44. Bb6 {[%emt 0:00:00]} Bg6
{[%emt 0:00:00]} 45. Nd4+ {[%emt 0:00:00]} Ke5 {[%emt 0:00:00]} 46. Ne2 {
[%emt 0:00:00]} Bd2 {[%emt 0:00:00]} 47. Bd4+ {[%emt 0:00:00]} Ke6 {[%emt 0:00:
00]} 48. Nc3 {[%emt 0:00:00]} Bd3 {[%emt 0:00:00]} 49. Na4 {[%emt 0:00:00]} Bc2
{[%emt 0:00:00]} 50. Nc5+ {[%emt 0:00:00]} Ke7 {[%emt 0:00:00]} 51. Be5 {
[%emt 0:00:00]} Bxa5 {[%emt 0:00:00]} 52. Nxb7 {[%emt 0:00:00]} Bb4 {[%emt 0:
00:00]} 53. Bg7 {[%emt 0:00:00]} Kf7 {[%emt 0:00:00]} 54. Bd4 {[%emt 0:00:00]}
Bxb3 {[%emt 0:00:00]} 55. c5 {[%emt 0:00:08]} Bd5 {[%emt 0:00:00]} 56. c6 {
[%emt 0:00:00]} a5 {[%emt 0:00:00]} 57. Bb6 {[%emt 0:00:01]} a4 {[%emt 0:00:00]
} 58. Na5 {[%emt 0:00:00]} Ke7 {[%emt 0:00:00]} 59. Kf2 {[%emt 0:00:00]} a3 {
[%emt 0:00:00]} 60. Bd4 {[%emt 0:00:00]} Bxa5 {[%emt 0:00:00]} 61. Bc5+ {
[%emt 0:00:00]} Kf7 {[%emt 0:00:00]} 62. Bxa3 {[%emt 0:00:00]} Bxc6 {[%emt 0:
00:00]} 63. Bc5 {[%emt 0:00:00]} Kg6 {[%emt 0:00:00]} 64. Kg2 {[%emt 0:00:00]}
Be1 {[%emt 0:00:00]} 65. Bd6 {[%emt 0:00:00]} Bg3 {[%emt 0:00:00]} 0-1

[Event "Gibraltar Masters 18th"]
[Site "Gibraltar"]
[Date "2020.01.23"]
[Round "3.48"]
[White "Shachar, Ehud"]
[Black "Santos Ruiz, Miguel"]
[Result "0-1"]
[ECO "B50"]
[WhiteElo "2363"]
[BlackElo "2591"]
[PlyCount "82"]
[EventDate "2020.01.21"]
[EventType "swiss"]
[EventRounds "10"]
[EventCountry "GGB"]
[SourceTitle "BritBase"]
[Source "John Saunders"]
[SourceDate "2021.06.05"]
[SourceVersion "1"]
[SourceVersionDate "2021.06.05"]
[SourceQuality "1"]
[TimeControl "40/100:0"]
[WhiteClock "0:02:00"]
[BlackClock "0:05:49"]

1. e4 {[%emt 0:00:00]} c5 {[%emt 0:00:00]} 2. Nf3 {[%emt 0:00:00]} d6 {[%emt 0:
00:00]} 3. c3 {[%emt 0:00:00]} Nf6 {[%emt 0:00:00]} 4. Be2 {[%emt 0:00:00]} g6
{[%emt 0:00:00]} 5. O-O {[%emt 0:00:00]} Bg7 {[%emt 0:00:00]} 6. Bb5+ {[%emt 0:
00:00]} Nc6 {[%emt 0:00:00]} 7. d4 {[%emt 0:00:00]} O-O {[%emt 0:00:00]} 8. d5
{[%emt 0:00:00]} a6 {[%emt 0:00:00]} 9. Bd3 {[%emt 0:00:00]} Na5 {[%emt 0:00:
00]} 10. Re1 {[%emt 0:00:00]} b5 {[%emt 0:00:00]} 11. Nbd2 {[%emt 0:00:00]} e6
{[%emt 0:00:00]} 12. dxe6 {[%emt 0:00:00]} Bxe6 {[%emt 0:00:00]} 13. h3 {
[%emt 0:00:00]} Re8 {[%emt 0:00:00]} 14. Ng5 {[%emt 0:00:00]} Bd7 {[%emt 0:00:
00]} 15. Nf1 {[%emt 0:00:00]} Bc6 {[%emt 0:00:00]} 16. Ng3 {[%emt 0:00:00]} Ra7
{[%emt 0:00:00]} 17. Bf4 Rae7 18. Qd2 {[%emt 0:00:00]} Nb7 {[%emt 0:00:00]} 19.
Rad1 {[%emt 0:00:00]} d5 {[%emt 0:00:00]} 20. Qc1 {[%emt 0:00:00]} Qc8 {
[%emt 0:00:00]} 21. exd5 {[%emt 0:00:00]} Rxe1+ {[%emt 0:00:00]} 22. Rxe1 {
[%emt 0:00:00]} Nxd5 {[%emt 0:00:00]} 23. Bd2 {[%emt 0:00:00]} c4 {[%emt 0:00:
00]} 24. Bc2 {[%emt 0:00:00]} f5 {[%emt 0:00:00]} 25. Nf3 {[%emt 0:00:00]} Nc5
{[%emt 0:00:00]} 26. Ne2 {[%emt 0:00:00]} Nf6 {[%emt 0:00:00]} 27. Ned4 {
[%emt 0:00:00]} Be4 {[%emt 0:00:00]} 28. b3 {[%emt 0:00:00]} Bxc2 {[%emt 0:00:
00]} 29. Qxc2 {[%emt 0:00:00]} Nfe4 {[%emt 0:00:00]} 30. bxc4 {[%emt 0:00:00]}
bxc4 {[%emt 0:00:00]} 31. Rb1 {[%emt 0:00:00]} Qc7 {[%emt 0:00:00]} 32. Rb4 {
[%emt 0:00:00]} Nd3 {[%emt 0:00:00]} 33. Qa4 {[%emt 0:00:00]} Rc8 {[%emt 0:00:
00]} 34. Rb1 {[%emt 0:00:00]} Bxd4 {[%emt 0:00:00]} 35. cxd4 {[%emt 0:00:00]}
c3 {[%emt 0:00:00]} 36. Qxa6 {[%emt 0:00:00]} cxd2 {[%emt 0:00:00]} 37. Qxd3 {
[%emt 0:00:00]} Qc2 {[%emt 0:00:00]} 38. Qxc2 {[%emt 0:00:00]} Rxc2 {[%emt 0:
00:00]} 39. Kh2 {[%emt 0:00:00]} Nxf2 {[%emt 0:00:00]} 40. Rb8+ {[%emt 0:00:00]
} Kg7 {[%emt 0:00:00]} 41. Rb7+ {[%emt 0:01:20]} Kh6 {[%emt 0:00:00]} 0-1

[Event "Gibraltar Masters 18th"]
[Site "Gibraltar"]
[Date "2020.01.23"]
[Round "3.49"]
[White "Tregubov, Pavel V"]
[Black "Abrahamyan, Tatev"]
[Result "1/2-1/2"]
[ECO "A13"]
[WhiteElo "2588"]
[BlackElo "2363"]
[PlyCount "90"]
[EventDate "2020.01.21"]
[EventType "swiss"]
[EventRounds "10"]
[EventCountry "GGB"]
[SourceTitle "BritBase"]
[Source "John Saunders"]
[SourceDate "2021.06.05"]
[SourceVersion "1"]
[SourceVersionDate "2021.06.05"]
[SourceQuality "1"]
[TimeControl "40/100:0"]
[WhiteClock "0:36:05"]
[BlackClock "0:34:24"]

1. c4 {[%emt 0:00:00]} Nf6 {[%emt 0:00:00]} 2. Nc3 {[%emt 0:00:00]} e6 {
[%emt 0:00:00]} 3. Nf3 {[%emt 0:00:00]} d5 {[%emt 0:00:00]} 4. e3 {[%emt 0:00:
00]} a6 {[%emt 0:00:00]} 5. b3 {[%emt 0:00:00]} c5 {[%emt 0:00:00]} 6. Bb2 {
[%emt 0:00:00]} Nc6 {[%emt 0:00:00]} 7. d4 {[%emt 0:00:00]} cxd4 {[%emt 0:00:
00]} 8. exd4 {[%emt 0:00:00]} Ne4 {[%emt 0:00:00]} 9. a3 {[%emt 0:00:00]} Nxc3
{[%emt 0:00:00]} 10. Bxc3 {[%emt 0:00:00]} Be7 {[%emt 0:00:00]} 11. Bd3 {
[%emt 0:00:00]} O-O {[%emt 0:00:00]} 12. O-O {[%emt 0:00:00]} b6 {[%emt 0:00:
00]} 13. Qc2 {[%emt 0:00:00]} g6 {[%emt 0:00:00]} 14. Rfd1 {[%emt 0:00:00]} Bb7
{[%emt 0:00:00]} 15. b4 dxc4 16. Bxc4 Na7 17. d5 {[%emt 0:00:00]} exd5 18. Qd2
Bf6 {[%emt 0:00:00]} 19. Bxd5 {[%emt 0:00:00]} Bxc3 {[%emt 0:00:00]} 20. Qxc3 {
[%emt 0:00:00]} Bxd5 {[%emt 0:00:00]} 21. Qe5 {[%emt 0:00:00]} Nc6 {[%emt 0:00:
00]} 22. Qxd5 {[%emt 0:00:00]} Qxd5 {[%emt 0:00:00]} 23. Rxd5 {[%emt 0:00:00]}
Rfd8 {[%emt 0:00:00]} 24. Rad1 {[%emt 0:00:00]} Rxd5 {[%emt 0:00:00]} 25. Rxd5
{[%emt 0:00:00]} Rd8 {[%emt 0:00:00]} 26. Rxd8+ {[%emt 0:00:00]} Nxd8 {[%emt 0:
00:00]} 27. Ne5 {[%emt 0:00:00]} Ne6 {[%emt 0:00:00]} 28. Nd7 {[%emt 0:00:00]}
b5 {[%emt 0:00:00]} 29. Kf1 {[%emt 0:00:00]} f5 {[%emt 0:00:00]} 30. Ke2 {
[%emt 0:00:00]} Kf7 {[%emt 0:00:00]} 31. Ke3 {[%emt 0:00:00]} Ke7 {[%emt 0:00:
00]} 32. Nb8 {[%emt 0:00:00]} Nc7 {[%emt 0:00:00]} 33. Kf4 {[%emt 0:00:00]} Kf6
{[%emt 0:00:00]} 34. Nd7+ {[%emt 0:00:00]} Ke7 {[%emt 0:00:00]} 35. Nc5 {
[%emt 0:00:00]} Kf6 {[%emt 0:00:00]} 36. h4 {[%emt 0:00:00]} h6 {[%emt 0:00:00]
} 37. Ke3 {[%emt 0:00:00]} Ke5 {[%emt 0:00:00]} 38. Nd7+ {[%emt 0:00:30]} Ke6 {
[%emt 0:00:00]} 39. Nf8+ {[%emt 0:00:18]} Kf7 {[%emt 0:00:00]} 40. Nd7 {
[%emt 0:00:00]} Ke6 {[%emt 0:00:00]} 41. Nb8 {[%emt 0:00:00]} Ke5 {[%emt 0:00:
00]} 42. f4+ {[%emt 0:00:00]} Kd5 {[%emt 0:00:00]} 43. Kd3 {[%emt 0:00:00]} Kd6
{[%emt 0:00:00]} 44. g3 {[%emt 0:00:00]} Ne6 {[%emt 0:00:00]} 45. Nxa6 {
[%emt 0:00:00]} Kc6 {[%emt 0:00:00] Ke4} 1/2-1/2

[Event "Gibraltar Masters 18th"]
[Site "Gibraltar"]
[Date "2020.01.23"]
[Round "3.50"]
[White "Beinoras, Mindaugas"]
[Black "Idani, Pouya"]
[Result "1-0"]
[ECO "A45"]
[WhiteElo "2355"]
[BlackElo "2577"]
[PlyCount "59"]
[EventDate "2020.01.21"]
[EventType "swiss"]
[EventRounds "10"]
[EventCountry "GGB"]
[SourceTitle "BritBase"]
[Source "John Saunders"]
[SourceDate "2021.06.05"]
[SourceVersion "1"]
[SourceVersionDate "2021.06.05"]
[SourceQuality "1"]
[TimeControl "40/100:0"]
[WhiteClock "0:18:20"]
[BlackClock "0:22:33"]

1. d4 {[%emt 0:00:00]} Nf6 {[%emt 0:00:00]} 2. Bg5 {[%emt 0:00:00]} Ne4 {
[%emt 0:00:00]} 3. Bf4 {[%emt 0:00:00]} d5 {[%emt 0:00:00]} 4. e3 {[%emt 0:00:
00]} c5 {[%emt 0:00:00]} 5. Bd3 {[%emt 0:00:00]} cxd4 {[%emt 0:00:00]} 6. Bxe4
{[%emt 0:00:00]} dxe4 {[%emt 0:00:00]} 7. exd4 {[%emt 0:00:00]} g6 {[%emt 0:00:
00]} 8. Nc3 {[%emt 0:00:00]} Bg7 {[%emt 0:00:00]} 9. Nge2 {[%emt 0:00:00]} f5 {
[%emt 0:00:00]} 10. Qd2 {[%emt 0:00:00]} O-O {[%emt 0:00:00]} 11. Bh6 {[%emt 0:
00:00]} Bxh6 {[%emt 0:00:00]} 12. Qxh6 {[%emt 0:00:00]} e5 {[%emt 0:00:00]} 13.
O-O-O {[%emt 0:00:00]} Nc6 {[%emt 0:00:00]} 14. dxe5 {[%emt 0:00:00]} Qe7 {
[%emt 0:00:00]} 15. Nd5 {[%emt 0:00:00]} Qxe5 {[%emt 0:00:00]} 16. Nef4 Be6 17.
Nc7 Bxa2 18. Nxa8 Bf7 19. Rd7 {[%emt 0:00:00]} Nb4 20. Rhd1 {[%emt 0:00:00]}
Qb5 {[%emt 0:00:00]} 21. Nd5 {[%emt 0:00:00]} Nxd5 {[%emt 0:00:00]} 22. R1xd5 {
[%emt 0:00:00]} Qf1+ {[%emt 0:00:00]} 23. Rd1 {[%emt 0:00:00]} Qa6 {[%emt 0:00:
00]} 24. Qe3 {[%emt 0:00:00]} Rxa8 {[%emt 0:00:00]} 25. Rd8+ {[%emt 0:00:00]}
Rxd8 {[%emt 0:00:00]} 26. Rxd8+ {[%emt 0:00:00]} Kg7 {[%emt 0:00:00]} 27. Qd4+
{[%emt 0:00:00]} Kh6 {[%emt 0:00:00]} 28. Rd7 {[%emt 0:00:00]} Qa1+ {[%emt 0:
00:00]} 29. Kd2 {[%emt 0:00:00]} Qa5+ {[%emt 0:00:00]} 30. b4 {[%emt 0:00:00]}
1-0

[Event "Gibraltar Masters 18th"]
[Site "Gibraltar"]
[Date "2020.01.23"]
[Round "3.51"]
[White "Beliavsky, Alexander G"]
[Black "Barrish, Daniel"]
[Result "1/2-1/2"]
[ECO "A09"]
[WhiteElo "2529"]
[BlackElo "2352"]
[PlyCount "110"]
[EventDate "2020.01.21"]
[EventType "swiss"]
[EventRounds "10"]
[EventCountry "GGB"]
[SourceTitle "BritBase"]
[Source "John Saunders"]
[SourceDate "2021.06.05"]
[SourceVersion "1"]
[SourceVersionDate "2021.06.05"]
[SourceQuality "1"]
[TimeControl "40/100:0"]
[WhiteClock "0:19:53"]
[BlackClock "0:01:47"]

1. Nf3 {[%emt 0:00:00]} d5 {[%emt 0:00:00]} 2. c4 {[%emt 0:00:00]} d4 {[%emt 0:
00:00]} 3. g3 {[%emt 0:00:00]} Nc6 {[%emt 0:00:00]} 4. Bg2 {[%emt 0:00:00]} e5
{[%emt 0:00:00]} 5. d3 {[%emt 0:00:00]} Bb4+ {[%emt 0:00:00]} 6. Nbd2 {[%emt 0:
00:00]} a5 {[%emt 0:00:00]} 7. a3 {[%emt 0:00:00]} Be7 {[%emt 0:00:00]} 8. Rb1
{[%emt 0:00:00]} a4 {[%emt 0:00:00]} 9. b4 {[%emt 0:00:00]} axb3 {[%emt 0:00:
00]} 10. Rxb3 {[%emt 0:00:00]} Nf6 {[%emt 0:00:00]} 11. Rb5 {[%emt 0:00:00]}
Nd7 {[%emt 0:00:00]} 12. O-O {[%emt 0:00:00]} O-O {[%emt 0:00:00]} 13. Nb3 {
[%emt 0:00:00]} Bxa3 {[%emt 0:00:00]} 14. e3 {[%emt 0:00:00]} Bxc1 {[%emt 0:00:
00]} 15. Qxc1 {[%emt 0:00:00]} dxe3 {[%emt 0:00:00]} 16. Qxe3 {[%emt 0:00:00]}
Ra6 {[%emt 0:00:00]} 17. Re1 {[%emt 0:00:00]} Na7 18. Ra5 Rxa5 19. Nxa5 c5 {
[%emt 0:00:00]} 20. Nb3 b6 21. Ng5 h6 22. Ne4 Bb7 23. f4 exf4 24. Qxf4 Bxe4 25.
Rxe4 Nf6 26. Re3 Nc8 {[%emt 0:00:00]} 27. d4 {[%emt 0:00:00]} cxd4 {[%emt 0:00:
00]} 28. Qxd4 {[%emt 0:00:00]} Qxd4 {[%emt 0:00:00]} 29. Nxd4 {[%emt 0:00:00]}
Nd6 {[%emt 0:00:00]} 30. Rb3 {[%emt 0:00:00]} Nxc4 {[%emt 0:00:00]} 31. Rb4 {
[%emt 0:00:00]} Ne3 {[%emt 0:00:00]} 32. Rxb6 {[%emt 0:00:00]} Rd8 {[%emt 0:00:
00]} 33. Rb4 {[%emt 0:00:00]} g5 {[%emt 0:00:00]} 34. Bf3 {[%emt 0:00:00]} Nfd5
{[%emt 0:00:00]} 35. Rb3 {[%emt 0:00:00]} Nf6 {[%emt 0:00:00]} 36. Rxe3 {
[%emt 0:00:00]} Rxd4 {[%emt 0:00:00]} 37. Re2 {[%emt 0:00:00]} Kg7 {[%emt 0:00:
00]} 38. Kf2 {[%emt 0:00:00]} Kg6 {[%emt 0:00:00]} 39. Ra2 {[%emt 0:00:00]} Rd6
{[%emt 0:00:00]} 40. Ke3 {[%emt 0:00:00]} h5 {[%emt 0:00:00]} 41. Kf2 {[%emt 0:
00:00]} Rb6 {[%emt 0:00:00]} 42. Kg2 {[%emt 0:00:00]} Nh7 {[%emt 0:00:00]} 43.
Ra7 {[%emt 0:00:00]} Rb2+ {[%emt 0:00:09]} 44. Kg1 {[%emt 0:00:00]} Nf6 {
[%emt 0:00:00]} 45. Ra6 {[%emt 0:00:00]} Kg7 {[%emt 0:00:41]} 46. Ra5 {[%emt 0:
00:00]} g4 {[%emt 0:00:07]} 47. Bg2 {[%emt 0:00:00]} Rb6 {[%emt 0:00:03]} 48.
Ra3 {[%emt 0:00:00]} Kg6 {[%emt 0:00:31]} 49. h3 {[%emt 0:00:00]} gxh3 {
[%emt 0:00:18]} 50. Bxh3 {[%emt 0:00:00]} Nh7 {[%emt 0:00:29]} 51. Bf1 {
[%emt 0:00:00]} f5 {[%emt 0:00:00]} 52. Ra6 {[%emt 0:00:00]} Rxa6 {[%emt 0:00:
00]} 53. Bxa6 {[%emt 0:00:00]} Kg5 {[%emt 0:00:00]} 54. Kg2 {[%emt 0:00:00]}
Nf6 {[%emt 0:00:00]} 55. Be2 {[%emt 0:00:00]} Ne4 {[%emt 0:00:00]} 1/2-1/2